bitfinex-derivatives/quotes_SOLF0:USTF0_20250829
["timestamp","ask_amount","ask_price","bid_price","bid_amount"]
[1756449613945,242.85100584,213.71,213.49,65.5671]
[1756449614245,21.17100584,213.71,213.49,65.5671]
[1756449614650,21.17100584,213.73,213.49,65.5671]
[1756449614946,3.3810085,213.72,213.25,1238.11574717]
[1756449615146,21.17100584,213.67,213.42,65.5875]
[1756449615347,21.17100584,213.67,213.47,65.5725]
[1756449615550,21.17100584,213.67,213.49,65.5675]
[1756449615753,21.17100584,213.67,213.47,65.5725]
[1756449616048,21.17100584,213.72,213.49,65.5674]
[1756449616245,21.17100584,213.72,213.47,65.5725]
[1756449616246,3.37915902,213.71,213.47,65.5725]
[1756449616444,3.37915902,213.7,213.45,69.795]
[1756449616751,3.37915902,213.69,213.47,65.5721]
[1756449616950,242.23100584,213.72,213.47,65.5721]
[1756449617253,224.13844487,213.71,213.45,69.795]
[1756449617452,3.37844487,213.7,213.45,65.5792]
[1756449617653,3.37844487,213.69,213.44,65.5826]
[1756449617953,223.79844487,213.68,213.44,65.5826]
[1756449618152,3.37844487,213.67,213.44,65.5826]
[1756449618350,220.42,213.68,213.44,65.5826]
[1756449618551,3.37336998,213.67,213.44,65.5826]
[1756449618852,220.18,213.7,213.46,65.5764]
[1756449619057,21.17100584,213.67,213.46,65.5764]
[1756449620152,219.86,213.66,213.46,65.5764]
[1756449620353,21.17100584,213.67,213.44,69.7986]
[1756449620557,219.54,213.66,213.44,69.7986]
[1756449620752,219.54,213.66,213.42,65.589]
[1756449620753,21.17100584,213.61,213.42,65.5889]
[1756449621155,21.17100584,213.61,213.53,0.03075692]
[1756449621554,21.17100584,213.65,213.53,0.03075692]
[1756449622059,0.46,213.64,213.48,65.5701]
[1756449622255,219.06,213.66,213.48,65.5701]
[1756449622456,21.17100584,213.63,213.44,69.7979]
[1756449622956,240.39100584,213.66,213.46,65.5766]
[1756449623556,21.17100584,213.66,213.46,69.7922]
[1756449624055,21.17100584,213.66,213.48,69.7854]
[1756449624260,240.41100584,213.71,213.5,65.5632]
[1756449624453,21.17100584,213.69,213.49,65.5674]
[1756449624759,21.17100584,213.69,213.51,69.776]
[1756449625256,240.37100584,213.69,213.51,69.776]
[1756449625661,21.17100584,213.69,213.51,69.776]
[1756449625959,218.8,213.68,213.51,69.776]
[1756449626159,218.8,213.68,213.49,65.5674]
[1756449626557,218.8,213.68,213.48,65.57]
[1756449627060,21.17100584,213.63,213.49,69.7821]
[1756449627461,21.17100584,213.63,213.56,0.03096399]
[1756449627760,218.24,213.62,213.56,0.03096399]
[1756449627961,21.17100584,213.63,213.56,0.03096399]
[1756449628362,217.68,213.62,213.56,0.03096399]
[1756449628566,21.17100584,213.63,213.56,0.03096399]
[1756449628764,217.82,213.62,213.56,0.03096399]
[1756449629461,217.04,213.61,213.56,0.03096399]
[1756449629666,217.04,213.62,213.56,0.03096399]
[1756449630168,216.72,213.61,213.56,0.03096399]
[1756449630864,216.36,213.6,213.56,0.03096399]
[1756449631260,16.1323686,213.63,213.56,0.03096399]
[1756449631566,16.1323686,213.68,213.56,0.03096399]
[1756449631761,216.12,213.72,213.6,65.532]
[1756449631966,216.12,213.72,213.61,65.531]
[1756449632166,216.12,213.72,213.63,65.5244]
[1756449632364,216.12,213.72,213.57,65.5425]
[1756449632563,215.94,213.71,213.58,65.5399]
[1756449632868,16.1323686,213.73,213.61,69.7427]
[1756449633069,16.1323686,213.73,213.63,65.5247]
[1756449633569,16.1323686,213.73,213.63,4.2121]
[1756449633772,16.1323686,213.73,213.65,65.5163]
[1756449634270,16.1323686,213.73,213.66,69.7254]
[1756449634472,16.1323686,213.78,213.68,65.5079]
[1756449634867,16.1323686,213.78,213.71,4.2106]
[1756449635067,16.1323686,213.78,213.69,65.5044]
[1756449635266,287.68,213.79,213.7,65.5]
[1756449635467,287.68,213.79,213.71,65.4976]
[1756449635670,287.68,213.79,213.73,4.21]
[1756449636172,287.68,213.79,213.74,0.03061358]
[1756449636474,287.68,213.79,213.76,65.4831]
[1756449636670,16.1323686,213.87,213.76,65.4831]
[1756449636874,16.1323686,213.87,213.74,0.03061358]
[1756449637068,16.1323686,213.87,213.73,65.4921]
[1756449637269,16.1323686,213.87,213.72,65.4952]
[1756449637568,16.1323686,213.87,213.74,4.21]
[1756449637968,213.76,213.86,213.74,4.21]
[1756449638776,16.1323686,213.9,213.74,69.6992]
[1756449638973,213.34,213.85,213.74,4.21]
[1756449639169,16.1323686,213.9,213.74,4.21]
[1756449639374,16.1323686,213.84,213.71,69.7088]
[1756449639577,212.86,213.83,213.72,65.4951]
[1756449639776,16.1323686,213.84,213.75,65.4863]
[1756449640071,288.34,214.01,213.77,69.6894]
[1756449640072,212.68,213.86,213.77,69.6894]
[1756449640278,212.6,213.86,213.77,4.2093]
[1756449640477,212.6,213.86,213.71,65.4983]
[1756449640678,16.1323686,213.84,213.71,65.4983]
[1756449640878,212.56,213.85,213.71,65.4983]
[1756449641080,16.1323686,213.89,213.71,65.4983]
[1756449641275,16.1323686,213.89,213.79,65.4733]
[1756449641481,212.38,213.88,213.78,65.4773]
[1756449641876,212.38,213.88,213.75,65.4867]
[1756449642079,212.38,213.88,213.79,65.4731]
[1756449642476,16.1323686,213.89,213.79,65.4731]
[1756449642775,16.1323686,213.89,213.81,4.23856961]
[1756449642979,16.1323686,213.89,213.83,65.4618]
[1756449643274,212.46,213.92,213.86,4.2076]
[1756449643484,212.46,213.92,213.86,69.6603]
[1756449643780,212.46,213.92,213.79,73.0931]
[1756449643781,0.46,213.91,213.78,65.4763]
[1756449643987,16.1323686,213.88,213.74,65.487]
[1756449644276,16.1323686,213.88,213.76,65.4835]
[1756449644475,215.67089113,213.87,213.76,65.4835]
[1756449644782,3.43089113,213.86,213.76,65.4835]
[1756449644982,16.1323686,213.88,213.76,65.4835]
[1756449645182,3.43213688,213.87,213.76,65.4835]
[1756449645384,3.43213688,213.86,213.76,65.4835]
[1756449645581,16.1323686,213.88,213.76,65.4835]
[1756449645777,3.43293019,213.87,213.76,65.4835]
[1756449645981,3.43293019,213.86,213.76,65.4835]
[1756449646181,16.1323686,213.88,213.74,65.487]
[1756449646681,16.1323686,213.88,213.75,7.62]
[1756449646880,16.1323686,213.94,213.75,7.62]
[1756449647075,3.43459967,213.93,213.75,7.62]
[1756449647278,3.43459967,213.92,213.75,7.62]
[1756449647474,16.1323686,213.94,213.75,7.62]
[1756449647475,3.43459967,213.91,213.75,7.62]
[1756449647674,3.43459967,213.9,213.75,7.62]
[1756449647881,3.43459967,213.89,213.75,7.62]
[1756449648081,3.43459967,213.88,213.75,7.62]
[1756449648286,3.43459967,213.87,213.75,7.62]
[1756449648489,3.43459967,213.86,213.75,7.62]
[1756449648683,3.43459967,213.85,213.75,7.62]
[1756449648882,210.9,213.96,213.75,7.62]
[1756449648883,3.43459967,213.84,213.75,7.62]
[1756449649084,16.1323686,213.9,213.75,7.62]
[1756449649085,3.43459967,213.83,213.75,7.62]
[1756449649280,3.43459967,213.82,213.75,7.62]
[1756449649484,3.43459967,213.81,213.75,7.62]
[1756449649684,3.43459967,213.8,213.67,7.62]
[1756449649883,3.43459967,213.79,213.67,7.62]
[1756449650184,3.43459967,213.78,213.67,7.62]
[1756449650385,3.43459967,213.77,213.67,7.62]
[1756449650583,3.43459967,213.76,213.67,7.62]
[1756449650782,3.43459967,213.75,213.67,7.62]
[1756449650985,3.43459967,213.74,213.67,7.62]
[1756449651185,3.43459967,213.73,213.67,7.62]
[1756449651390,16.1323686,213.85,213.62,7.62]
[1756449651791,16.1323686,213.85,213.77,4.2093]
[1756449651986,16.1323686,213.85,213.74,65.4894]
[1756449652185,16.1323686,213.85,213.76,65.483]
[1756449652386,16.1323686,213.85,213.81,4.2085]
[1756449652588,16.1323686,213.9,213.81,65.4681]
[1756449652991,16.1323686,213.9,213.82,65.4647]
[1756449653186,16.1323686,213.95,213.82,65.4647]
[1756449653693,16.1323686,213.95,213.86,65.4528]
[1756449653990,16.1323686,213.95,213.89,4.2069]
[1756449654192,16.1323686,213.95,213.88,65.4463]
[1756449654494,3.43,214.03,213.99,4.205]
[1756449654695,5.13176892,214.16,213.99,4.205]
[1756449654987,3.43,214.28,214.11,69.5787]
[1756449655182,16.1323686,214.29,214.16,65.36]
[1756449655387,16.1323686,214.29,214.14,65.366]
[1756449655585,16.1323686,214.29,214.18,4.2013]
[1756449655783,16.1323686,214.29,214.19,0.02971729]
[1756449655985,3.43,214.23,214.04,65.397]
[1756449656187,16.1323686,214.19,214.02,11.8243]
[1756449656386,16.1323686,214.14,213.98,65.4147]
[1756449656586,3.4,214.17,213.98,65.4147]
[1756449656587,16.1323686,214.09,213.98,65.4147]
[1756449656790,16.1323686,214.14,214.03,65.3997]
[1756449656986,16.1323686,214.14,214.01,65.4066]
[1756449656987,16.1323686,214.14,214.02,65.4019]
[1756449657187,16.1323686,214.14,214.03,69.6041]
[1756449657386,0.031109,214.1,214.05,65.3941]
[1756449657587,0.031109,214.1,214.03,65.3994]
[1756449657790,0.031109,214.1,214.01,69.6111]
[1756449657997,0.031109,214.1,214.01,4.2045]
[1756449658195,3.431109,214.1,213.96,65.4216]
[1756449658391,0.031109,214.1,213.98,65.4154]
[1756449658587,209.62,214.2,214.0,65.4093]
[1756449658794,16.1323686,214.17,214.04,65.3966]
[1756449658994,0.03218625,214.06,214.04,65.3966]
[1756449659196,16.1323686,214.17,214.04,65.3966]
[1756449659197,16.1323686,214.17,214.05,7.62]
[1756449659502,3.43,214.16,214.08,0.02958125]
[1756449660099,0.46,214.15,214.08,0.02958125]
[1756449660595,209.8,214.22,213.93,65.4311]
[1756449660596,3.4,214.11,213.93,65.4311]
[1756449660795,16.1323686,214.12,213.94,65.4283]
[1756449660996,3.4,214.11,213.96,65.4214]
[1756449661902,0.03340391,214.06,213.96,65.4214]
[1756449662095,0.03340391,214.06,213.96,69.6269]
[1756449662299,0.03340391,214.06,213.98,65.4154]
[1756449663102,0.03340391,214.06,214.0,65.4086]
[1756449663300,0.03340391,214.06,213.98,65.4154]
[1756449663496,0.03340391,214.06,214.0,65.4095]
[1756449664098,0.03340391,214.06,214.0,4.2048]
[1756449664303,0.03340391,214.06,213.98,65.4154]
[1756449664507,0.03340391,214.06,213.96,65.4214]
[1756449665404,0.03340391,214.06,213.96,4.2055]
[1756449665599,0.03340391,214.06,213.95,7.62]
[1756449665600,0.03340391,214.06,213.98,65.4146]
[1756449665807,0.03340391,214.06,213.95,7.62]
[1756449666009,0.03340391,214.06,214.03,4.2043]
[1756449666302,0.03340391,214.06,214.04,7.62]
[1756449666499,3.4,214.17,214.01,7.71]
[1756449666697,209.84,214.19,214.05,65.3947]
[1756449667098,287.98,214.2,214.07,0.03151548]
[1756449667501,3.38,214.19,214.05,65.3947]
[1756449667910,3.38,214.19,214.08,4.2033]
[1756449668111,3.38,214.19,214.1,0.02999259]
[1756449668607,287.98,214.2,214.1,0.02999259]
[1756449669513,16.1323686,214.22,214.1,69.61209259]
[1756449669714,206.6,214.29,214.14,65.366]
[1756449669907,206.6,214.29,214.16,65.361]
[1756449670108,16.1323686,214.35,214.19,4.2012]
[1756449670311,494.02,214.38,214.21,65.3454]
[1756449670508,494.02,214.38,214.21,4.2007]
[1756449670814,494.02,214.38,214.13,65.3699]
[1756449670815,7.52,214.45,214.32,65.3121]
[1756449671012,16.1323686,214.48,214.34,65.306]
[1756449671207,16.1323686,214.48,214.35,69.5002]
[1756449671406,16.1323686,214.48,214.35,4.198]
[1756449671608,16.1323686,214.48,214.28,65.3223]
[1756449671908,7.52,214.48,213.96,5.17574717]
[1756449672108,7.52,214.48,213.98,293.03574717]
[1756449672309,7.52,214.48,214.36,0.03047747]
[1756449672712,23.6523686,214.48,214.36,0.03047747]
[1756449673011,7.52,214.46,214.36,0.03047747]
[1756449673414,16.1323686,214.43,214.36,0.03047747]
[1756449674116,207.2,214.44,214.18,0.03]
[1756449674117,16.1323686,214.37,214.18,0.03]
[1756449675210,16.1323686,214.37,214.25,0.03079422]
[1756449675611,7.52,214.41,214.25,0.03079422]
[1756449675612,16.1323686,214.4,214.25,0.03079422]
[1756449676009,207.2,214.44,214.25,0.03]
[1756449676217,16.1323686,214.51,214.3,0.03036342]
[1756449676410,16.1323686,214.51,214.31,0.03]
[1756449676618,7.52,214.5,214.31,0.03]
[1756449676815,16.1323686,214.46,214.31,0.03]
[1756449677010,16.1323686,214.46,214.39,0.03582341]
[1756449677412,206.88,214.45,214.39,0.03582341]
[1756449677619,16.1323686,214.46,214.39,0.03582341]
[1756449678014,7.52,214.44,214.25,0.03]
[1756449678209,7.52,214.44,214.27,65.3264]
[1756449678415,16.1323686,214.41,214.26,65.3304]
[1756449678716,494.74,214.4,214.26,65.3304]
[1756449678918,287.62,214.4,214.26,69.5302]
[1756449679111,206.88,214.39,214.26,4.1998]
[1756449679315,287.62,214.4,214.26,4.1998]
[1756449679512,0.03498525,214.35,214.28,69.5236]
[1756449679712,0.03498525,214.35,214.26,65.3303]
[1756449680015,0.03498525,214.35,214.24,65.3356]
[1756449680409,0.03498525,214.35,214.22,0.07]
[1756449680813,23.6523686,214.38,214.09,24.5383686]
[1756449681017,23.6523686,214.38,214.12,0.07]
[1756449681214,0.03049535,214.31,214.12,0.07]
[1756449681417,0.03049535,214.31,214.09,8.406]
[1756449681612,7.52,214.38,214.16,16.1323686]
[1756449681921,16.1323686,214.46,214.21,0.07]
[1756449682113,16.1323686,214.46,214.25,0.03105111]
[1756449682314,16.1323686,214.46,214.26,0.07]
[1756449682618,16.1323686,214.51,214.26,0.07]
[1756449683423,7.0,214.53,214.36,0.03438136]
[1756449683818,7.0,214.53,214.35,0.07]
[1756449684425,7.0,214.53,214.42,0.0352005]
[1756449685924,7.52,214.49,214.42,0.0352005]
[1756449686121,16.1323686,214.5,214.42,0.0352005]
[1756449686422,7.0,214.53,214.43,0.46]
[1756449686623,7.0,214.53,214.42,0.0352005]
[1756449687517,213.7,214.53,214.42,0.0352005]
[1756449687718,7.0,214.53,214.42,0.0352005]
[1756449687919,207.12,214.52,214.42,0.0352005]
[1756449688123,65.2699,214.47,214.42,0.0352005]
[1756449688323,7.52,214.45,214.42,0.0352005]
[1756449688625,65.3036,214.35,214.17,16.1323686]
[1756449688931,207.68,214.34,214.11,16.1323686]
[1756449689323,207.64,214.38,214.11,16.1323686]
[1756449689518,16.1323686,214.44,214.16,16.1323686]
[1756449689722,16.1323686,214.47,214.21,16.1323686]
[1756449690024,23.1323686,214.53,214.27,16.1323686]
[1756449690227,23.1323686,214.53,214.28,0.03547641]
[1756449690426,23.1323686,214.53,214.27,16.1323686]
[1756449690623,65.2592,214.5,214.27,16.1323686]
[1756449690824,7.52,214.48,214.27,16.1323686]
[1756449691021,23.6523686,214.48,214.22,16.1323686]
[1756449691220,23.6523686,214.48,214.36,0.03042087]
[1756449691427,7.0,214.53,214.36,0.03042087]
[1756449691428,23.1323686,214.53,214.36,0.03042087]
[1756449691630,4.1951,214.51,214.36,0.03042087]
[1756449691928,65.2656,214.48,214.22,16.1323686]
[1756449692131,76.9737,214.5,214.41,0.03272211]
[1756449692327,76.9735,214.5,214.41,0.03272211]
[1756449692527,7.52,214.5,214.22,16.1323686]
[1756449692827,16.1323686,214.51,214.43,0.03555225]
[1756449693135,7.52,214.52,214.29,16.1323686]
[1756449693430,7.0,214.53,214.29,16.1323686]
[1756449693726,7.0,214.53,214.45,0.03197087]
[1756449693929,65.2686,214.47,214.29,16.1323686]
[1756449694135,72.7841,214.48,214.24,16.1323686]
[1756449694430,7.52,214.48,214.25,65.3334]
[1756449694626,7.52,214.48,214.24,16.1323686]
[1756449694627,7.52,214.48,214.26,65.3306]
[1756449694830,65.2676,214.47,214.24,16.1323686]
[1756449695128,65.269,214.47,214.24,16.1323686]
[1756449695330,4.1966,214.43,214.24,16.1323686]
[1756449695527,65.2985,214.37,214.13,16.1323686]
[1756449695722,65.2988,214.37,214.13,16.1323686]
[1756449695926,4.1985,214.33,214.13,16.1323686]
[1756449696129,65.3161,214.31,214.08,16.1323686]
[1756449696432,7.52,214.3,214.08,16.1323686]
[1756449696629,0.03260624,214.25,214.03,16.1323686]
[1756449697032,209.58,214.26,213.98,16.1323686]
[1756449697429,0.0304704,214.16,213.98,16.1323686]
[1756449697828,16.1323686,214.23,213.98,16.1323686]
[1756449698029,4.2006,214.22,213.98,16.1323686]
[1756449698235,69.5447,214.22,213.98,16.1323686]
[1756449698426,0.03090551,214.12,213.98,16.1323686]
[1756449698931,16.1323686,214.23,213.98,16.1323686]
[1756449699130,0.03186523,214.07,213.98,16.1323686]
[1756449699525,16.1323686,214.23,213.98,16.1323686]
[1756449699926,0.03290603,214.05,213.98,16.1323686]
[1756449700131,81.4742686,214.23,213.98,16.1323686]
[1756449700435,0.02974778,214.04,213.98,16.1323686]
[1756449700729,0.02974778,214.04,213.93,16.1323686]
[1756449700941,65.36,214.17,213.93,16.1323686]
[1756449701124,0.03334083,213.98,213.93,16.1323686]
[1756449701329,65.3326,214.26,213.93,16.1323686]
[1756449701330,65.3527,214.19,213.93,16.1323686]
[1756449701529,65.3529,214.19,214.0,16.1323686]
[1756449701831,69.5542,214.19,213.95,16.1323686]
[1756449702031,65.3599,214.17,213.95,16.1323686]
[1756449702330,4.2024,214.13,213.95,16.1323686]
[1756449702631,72.6788,214.14,214.04,0.03057988]
[1756449702827,65.3712,214.13,214.04,0.03057988]
[1756449703033,65.3712,214.13,213.9,16.1323686]
[1756449703229,69.5736,214.13,213.91,65.4379]
[1756449703534,7.31,214.09,214.06,0.03357599]
[1756449703733,7.31,214.09,213.9,16.1323686]
[1756449703932,4.203,214.1,213.9,16.1323686]
[1756449704130,23.4423686,214.15,214.05,0.03326746]
[1756449704336,7.31,214.15,213.97,65.4197]
[1756449704535,72.6753,214.15,213.92,65.4332]
[1756449704727,65.3775,214.11,213.9,16.1323686]
[1756449704930,0.03011728,214.08,213.9,16.1323686]
[1756449705130,72.7042,214.06,213.85,16.1323686]
[1756449705329,65.3994,214.04,213.85,16.1323686]
[1756449705530,65.3994,214.04,213.81,65.4682]
[1756449705936,65.3994,214.04,213.83,65.4618]
[1756449705937,69.6036,214.04,213.83,65.4618]
[1756449706131,0.03337811,213.95,213.82,65.4653]
[1756449706325,0.03337811,213.95,213.83,65.4621]
[1756449706531,69.6036,214.04,213.83,4.2082]
[1756449707033,0.02976839,213.91,213.83,4.2082]
[1756449707236,4.2047,214.02,213.83,69.6707]
[1756449707738,65.3783,214.11,213.91,65.4378]
[1756449707937,7.31,214.13,213.97,65.4196]
[1756449708136,65.3598,214.17,213.97,65.4196]
[1756449708335,69.5638,214.16,213.97,4.2055]
[1756449708531,7.31,214.21,214.02,65.4043]
[1756449709135,274.2226,214.23,214.04,0.03219087]
[1756449709332,274.2226,214.23,214.02,65.4043]
[1756449709532,4.2009,214.21,214.11,0.03133472]
[1756449709734,65.3532,214.19,214.11,0.03133472]
[1756449709928,65.3563,214.18,214.11,0.03133472]
[1756449710133,7.31,214.17,214.11,0.03133472]
[1756449710439,7.31,214.15,213.95,224.8723686]
[1756449710634,7.31,214.15,213.95,16.1723686]
[1756449710635,65.3678,214.14,213.95,16.1723686]
[1756449710835,7.31,214.13,213.95,16.1323686]
[1756449711037,7.31,214.11,213.9,81.5724686]
[1756449711331,4.203,214.1,213.91,65.4377]
[1756449711534,0.03166941,214.03,213.94,65.4688]
[1756449711735,0.03166941,214.03,213.97,4.2055]
[1756449712037,0.03166941,214.03,213.95,16.1323686]
[1756449712232,0.03166941,214.03,213.96,65.8828]
[1756449712440,0.03166941,214.03,213.99,4.2051]
[1756449712633,0.03166941,214.03,214.0,0.04]
[1756449712828,0.03166941,214.03,214.0,0.46]
[1756449713033,0.03166941,214.03,214.0,0.04]
[1756449713230,0.03166941,214.03,214.01,4.7047]
[1756449713536,0.03166941,214.03,213.96,65.422]
[1756449713737,0.03166941,214.03,214.0,151.1957686]
[1756449713938,0.03166941,214.03,214.0,20.3370686]
[1756449714139,7.31,214.14,213.97,65.4192]
[1756449714334,4.2022,214.14,213.97,69.6247]
[1756449714536,0.03130152,214.04,213.97,4.2055]
[1756449714736,0.03130152,214.04,213.97,69.6251]
[1756449715137,0.03130152,214.04,213.97,69.6248]
[1756449715340,7.31,214.03,213.93,65.4307]
[1756449715537,7.31,214.03,213.92,65.4338]
[1756449715835,7.31,214.03,213.89,303.7323686]
[1756449716133,65.3867,214.08,213.89,303.7323686]
[1756449716134,65.3867,214.08,213.9,65.4411]
[1756449716332,0.03583291,213.98,213.89,303.7323686]
[1756449716531,0.03583291,213.98,213.9,65.4396]
[1756449716732,0.03583291,213.98,213.91,65.4378]
[1756449717034,0.03583291,213.98,213.88,65.446]
[1756449717530,0.03583291,213.98,213.88,50.5528]
[1756449717735,0.03583291,213.98,213.84,65.4584]
[1756449718133,65.399,214.04,213.84,65.4584]
[1756449718538,0.03030783,213.93,213.89,72.9331]
[1756449718739,65.3722,214.13,213.9,16.1323686]
[1756449718939,65.3722,214.13,213.91,65.4377]
[1756449719335,4.2031,214.1,213.92,69.6409]
[1756449719732,4.2031,214.1,213.92,4.2065]
[1756449720640,69.5832,214.1,213.92,4.2065]
[1756449720840,4.2024,214.13,213.94,69.6349]
[1756449721149,65.3777,214.11,213.91,65.4375]
[1756449721444,4.2033,214.09,213.91,65.4381]
[1756449721738,65.3711,214.13,213.93,65.4301]
[1756449721935,65.3711,214.13,213.87,7.49]
[1756449721936,65.3881,214.08,213.87,7.49]
[1756449722138,65.3866,214.08,213.89,16.1323686]
[1756449722339,65.3897,214.07,213.87,72.9382]
[1756449722531,65.3802,214.1,213.91,4.2065]
[1756449722739,65.3869,214.08,213.91,4.2065]
[1756449722936,65.3626,214.16,213.95,65.4257]
[1756449723135,4.2023,214.14,213.96,4.2056]
[1756449723841,4.2028,214.11,214.03,0.0351047]
[1756449724243,65.3594,214.17,214.03,0.0351047]
[1756449724446,4.2022,214.14,214.03,0.0351047]
[1756449724643,4.2022,214.14,213.98,4.2052]
[1756449724939,65.3623,214.16,214.06,0.0304458]
[1756449725346,65.3653,214.15,214.06,0.0304458]
[1756449725740,65.3686,214.14,214.06,0.0304458]
[1756449726141,65.3653,214.15,214.06,0.0304458]
[1756449726443,4.2022,214.14,214.06,0.0304458]
[1756449726640,65.3535,214.19,214.06,0.0304458]
[1756449726641,65.3578,214.18,214.06,0.0304458]
[1756449726945,65.3611,214.17,213.99,4.205]
[1756449727139,65.3611,214.17,214.1,0.03339828]
[1756449727340,4.2021,214.15,214.1,0.03339828]
[1756449727939,4.2025,214.13,214.1,0.03339828]
[1756449728246,65.3601,214.17,214.1,0.03339828]
[1756449728449,65.3619,214.16,214.1,0.03339828]
[1756449728744,65.3594,214.17,214.1,0.03339828]
[1756449728943,65.3584,214.18,214.1,0.03339828]
[1756449729138,0.46,214.18,213.76,5.17574717]
[1756449729343,0.46,214.18,213.51,7.11]
[1756449729344,65.4302,213.94,213.73,16.1323686]
[1756449729539,65.454,213.86,213.69,16.1323686]
[1756449729748,69.6744,213.82,213.59,7.11]
[1756449729949,16.1323686,213.85,213.59,7.11]
[1756449730148,16.1323686,213.85,213.62,16.1323686]
[1756449730355,16.1323686,213.85,213.6,7.11]
[1756449730553,0.03001019,213.74,213.6,7.11]
[1756449730950,16.1323686,213.8,213.6,7.11]
[1756449731454,0.03469845,213.69,213.6,7.11]
[1756449731750,0.05,213.89,213.63,16.1323686]
[1756449731956,4.2571,213.89,213.68,0.03361849]
[1756449732155,4.2571,213.89,213.63,16.1323686]
[1756449732458,0.05,213.89,213.64,7.11]
[1756449733058,0.05,213.89,213.74,0.0310239]
[1756449733461,0.05,213.89,213.7,7.11]
[1756449733755,0.05,213.89,213.79,0.03261262]
[1756449734153,16.1323686,213.95,213.79,0.03261262]
[1756449734457,0.07,213.94,213.79,0.03261262]
[1756449734659,0.07,213.94,213.73,16.1323686]
[1756449734859,16.1323686,213.98,213.73,16.1323686]
[1756449735156,0.04,213.85,213.73,16.1323686]
[1756449735358,0.03537123,213.86,213.81,65.468]
[1756449735556,0.04,213.85,213.76,65.4829]
[1756449735757,16.1323686,213.92,213.74,65.4899]
[1756449735957,4.2069,213.9,213.72,4.2104]
[1756449736156,16.1323686,213.87,213.69,65.504]
[1756449736357,16.1323686,213.87,213.66,65.5134]
[1756449736358,65.49186853,213.85,213.64,65.5201]
[1756449736554,16.1323686,213.87,213.68,65.5083]
[1756449736755,16.1323686,213.87,213.68,65.5084]
[1756449736956,0.03429386,213.77,213.68,65.5084]
[1756449737155,0.03429386,213.77,213.72,65.4951]
[1756449737350,16.1323686,213.9,213.79,65.4742]
[1756449737555,16.1323686,213.96,213.82,4.2083]
[1756449737959,201.16,213.98,213.82,4.2083]
[1756449738258,201.16,213.98,213.84,4.2079]
[1756449738456,287.72,214.03,213.88,65.4469]
[1756449738760,287.72,214.03,213.9,65.4394]
[1756449738961,287.72,214.03,213.84,65.459]
[1756449738962,16.1323686,214.02,213.84,65.459]
[1756449739159,16.1323686,214.02,213.85,65.4555]
[1756449739365,16.1323686,214.02,213.94,0.03595919]
[1756449740160,16.1323686,214.17,214.02,65.4041]
[1756449740457,16.1323686,214.22,214.06,4.2036]
[1756449740961,16.1323686,214.22,214.12,0.02952529]
[1756449741463,0.46,214.21,214.12,0.02952529]
[1756449741959,16.1323686,214.17,214.12,0.02952529]
[1756449742159,287.92,214.24,214.12,0.02952529]
[1756449742965,16.1323686,214.39,214.25,69.5336]
[1756449743160,16.1323686,214.38,214.22,65.3421]
[1756449743563,16.1323686,214.31,214.09,65.3824]
[1756449743757,16.1323686,214.31,214.03,7.81221425]
[1756449743758,16.1323686,214.24,214.06,65.3917]
[1756449744061,16.1323686,214.24,214.08,65.3846]
[1756449744265,16.1323686,214.24,214.08,65.3859]
[1756449744465,16.1323686,214.29,214.08,65.3858]
[1756449744666,16.1323686,214.29,214.04,65.398]
[1756449744867,16.1323686,214.28,214.05,65.3927]
[1756449745164,0.03156641,214.19,214.06,65.3918]
[1756449745372,0.03156641,214.19,214.08,65.3851]
[1756449745566,200.46,214.3,214.12,65.3731]
[1756449745762,16.1323686,214.33,214.14,65.366]
[1756449745963,65.2672,214.47,214.12,65.3731]
[1756449745964,5.13176892,214.49,214.29,65.3212]